{"text_format":"1","workbook":"xlsx","n_sheets":2,"sheets":["שער","גליון העלות"],"not_rendered":{"charts":0,"images":0,"macros":1,"external_links":0,"defined_names":9,"comments":0,"pivot_tables":0},"unopened":[],"bounds":{"document_bytes":16777216,"sheet_cells":100000,"rows_first":2000,"rows_last":500,"rows_between":2000,"halvings":0,"cell_chars":16384,"cell_head_chars":4096},"cells_cut":0,"cells_raw":0,"read":"whole","date_system":"1900"}

{"sheet":"שער","index":0,"n_rows":10,"n_cols":2,"rows_kept":10,"cut":false,"hidden":false,"merged":[]}
[null,"משרד המשפטים - מערכת הלבנה"]
[null,"טבלאות עלות (פרק 5)"]
[null,"הקלק על שם הטבלה בכדי לפתוח את הגליון המתאים"]
[null,{"$f":"'גליון העלות'!A1","v":"עלות רכש, שירותים מקצועיים ותחזוקה שנתית"}]
[null,"הנחיות למילוי טבלאות העלות"]
[null,"1. יש להשלים בכל אחת מהטבלאות רק את העמודות שצבען לבן"]
[null,"2. יש לשים לב להוראות המנוסחות בראש הטבלה "]
[null,"3. הסבר מפורט למשמעות כל עמודה מצוי בפרק 5 של המפרט"]
[null,"4. בכדי להוסיף שורה עבור פריט חומרה או תוכנה יש להציב את הסמן על המקום הרצוי ולהקליק על הכפתור \"הוסף שורה\" שבשורת הכותרת"]
[null,"5. לאחר השלמת כל הנתונים בטבלאות יש להדפיס את כולן, לחתום עליהן ולצרפן לפרק 5 של המענה"]

{"sheet":"גליון העלות","index":1,"n_rows":29,"n_cols":10,"rows_kept":29,"cut":false,"hidden":false,"merged":[[28,0,28,8],[2,7,3,7],[17,0,17,4],[10,0,10,4],[2,0,3,0],[2,5,3,5],[26,1,26,2],[27,0,27,4],[25,1,25,2],[24,0,24,4],[2,6,3,6],[1,0,1,9],[0,5,0,9],[2,8,3,8],[2,1,2,4],[2,9,3,9],[0,0,0,4]]}
["עלות רכש, שירותים מקצועיים ותחזוקה שנתית"]
["יש להשלים את מספרי המק\"ט של רכיבי החומרה והתוכנה, אחוז התחזוקה השנתית, עבור כל אחת משתי מהמערכות ועבור סביבת העבודה ומחירי פיתוח והדרכה.\nבכדי להוסיף שורה עבור פריט חומרה או תוכנה יש להציב את הסמן על השורה הרצויה ולהקליק על הכפתור \"הוסף שורה\" שבראש הגיליון."]
["נושא","רכיב",null,null,null,"עלות לכלל הכמות","שיעור התחזוקה השנתית","עלות רכש מערכת ותחזוקה ל-4 שנים","כמות מערכות ","סה\"כ עלות לכמות המערכות כולל תחזוקה ל-4 שנים"]
[null,"סוג","מק\"ט","מחיר\n(ללא מע\"מ)","כמות"]
["מערכת הלבנה מרכזית","חומרה",null,null,null,{"$f":"D5*E5","v":0}]
[null,null,null,null,null,{"$f":"D6*E6","v":0}]
[null,null,null,null,null,{"$f":"D7*E7","v":0}]
[null,"תוכנה",null,null,null,0]
[null,null,null,null,null,0]
[null,null,null,null,null,0]
["סה\"כ עלות מערכת הלבנה מרכזית",null,null,null,null,{"$f":"SUM(F5:F10)","v":0},null,{"$f":"F11+F11*G11*4","v":0},2,{"$f":"H11*I11","v":0}]
["מערכת הלבנה עצמאית ","חומרה",null,null,null,{"$f":"D12*E12","v":0}]
[null,null,null,null,null,{"$f":"D13*E13","v":0}]
[null,null,null,null,null,{"$f":"D14*E14","v":0}]
[null,"תוכנה",null,null,null,{"$f":"D15*E15","v":0}]
[null,null,null,null,null,0]
[null,null,null,null,null,0]
["סה\"כ עלות מערכת הלבנה מנותקת",null,null,null,null,{"$f":"SUM(F12:F17)","v":0},null,{"$f":"F18+F18*G18*4","v":0},5,{"$f":"H18*I18","v":0}]
["סביבת עבודה","חומרה",null,null,null,{"$f":"D19*E19","v":0}]
[null,null,null,null,null,{"$f":"D20*E20","v":0}]
[null,null,null,null,null,{"$f":"D21*E21","v":0}]
[null,"תוכנה",null,null,null,{"$f":"D22*E22","v":0}]
[null,null,null,null,null,{"$f":"D23*E23","v":0}]
[null,null,null,null,null,0]
["סה\"כ עלות סביבת עבודה",null,null,null,null,{"$f":"SUM(F19:F24)","v":0},null,{"$f":"F25+F25*G25*4","v":0},1,{"$f":"H25*I25","v":0}]
["פיתוח","עלות שעת מפתח",null,null,200,{"$f":"D26*E26","v":0}]
["הדרכה","עלות הדרכת עובד משרד ",null,null,10,{"$f":"D27*E27","v":0}]
["סה\"כ עלות שירותים מקצועיים",null,null,null,null,{"$f":"SUM(F26:F27)","v":0},null,null,null,{"$f":"F28","v":0}]
["סה\"כ עלות רכש ושירותים מקצועיים ותחזוקה ל-4 שנים לצורך השוואה",null,null,null,null,null,null,null,null,{"$f":"SUM(J5:J28)","v":0}]